[Event "Netanya Open 2019"]
[Site "Netanya"]
[Date "2019.06.25"]
[Round "3.19"]
[White "Khmelniker, Ilya"]
[Black "Karp, Michael"]
[Result "1-0"]
[ECO "A11"]
[WhiteElo "2483"]
[BlackElo "2194"]
[Annotator "ChessBase"]
[PlyCount "85"]
[EventDate "2019.06.23"]
[EventType "swiss"]
[EventCountry "ISR"]
[SourceTitle "playchess.com"]
[Source "ChessBase"]
[SourceQuality "1"]
[TimeControl "40/5400+30:1800+30"]

1. c4 {[%emt 0:00:00]} c6 {[%emt 0:00:34]} 2. Nf3 {[%emt 0:00:00]} d5 {[%emt 0:00:47]} 3. e3 {[%emt 0:00:00]} Nf6 {[%emt 0:01:41]} 4. Nc3 {[%emt 0:00:00]} e6 {[%emt 0:05:52]} 5. b3 {[%emt 0:00:04]} Bd6 {[%emt 0:04:17]} 6. Bb2 {[%emt 0:00:08]} Nbd7 {[%emt 0:01:01]} 7. Qc2 {[%emt 0:00:32]} a6 {[%emt 0:01:18]} 8. Be2 {[%emt 0:16:21]} O-O {[%emt 0:13:03]} 9. Rg1 {[%emt 0:12:32]} b5 {[%emt 0:15:51]} 10. g4 {[%emt 0:01:13]} b4 {[%emt 0:10:21]} 11. Na4 {[%emt 0:01:59]} Bb7 {[%emt 0:04:07]} 12. g5 {[%emt 0:20:53]} Ne8 {[%emt 0:07:02]} 13. c5 {[%emt 0:03:44]} Bc7 {[%emt 0:02:48]} 14. e4 {[%emt 0:00:16]} Bb8 {[%emt 0:11:39]} 15. exd5 {[%emt 0:09:29]} exd5 {[%emt 0:00:37]} 16. O-O-O {[%emt 0:00:28]} Nc7 {[%emt 0:02:17]} 17. Rg4 {[%emt 0:15:07]} Ne6 {[%emt 0:02:33]} 18. Rxb4 {[%emt 0:01:15]} Ra7 {[%emt 0:02:55]} 19. Qc3 {[%emt 0:04:32]} d4 {[%emt 0:01:09]} 20. Nxd4 {[%emt 0:01:20]} Be5 {[%emt 0:02:37]} 21. Nxe6 {[%emt 0:02:52]} Bxc3 {[%emt 0:01:30]} 22. Nxd8 {[%emt 0:00:06]} Bxb4 {[%emt 0:00:10]} 23. Nxb7 {[%emt 0:00:03]} Rxb7 {[%emt 0:00:13]} 24. d4 {[%emt 0:00:05]} Nb8 {[%emt 0:00:49]} 25. Bf3 {[%emt 0:03:43]} Ba5 {[%emt 0:01:27]} 26. Kc2 {[%emt 0:00:41]} Rd7 {[%emt 0:01:31]} 27. Bg4 {[%emt 0:01:57]} Re7 {[%emt 0:01:47]} 28. a3 {[%emt 0:01:58]} f6 {[%emt 0:00:27]} 29. b4 {[%emt 0:00:13]} Bc7 {[%emt 0:00:40]} 30. d5 {[%emt 0:00:08]} cxd5 {[%emt 0:01:49]} 31. gxf6 {[%emt 0:00:05]} gxf6 {[%emt 0:00:45]} 32. Nc3 {[%emt 0:00:10]} Be5 {[%emt 0:01:12]} 33. f4 {[%emt 0:00:28]} d4 {[%emt 0:00:48]} 34. Nd5 {[%emt 0:00:21]} Rg7 {[%emt 0:00:28]} 35. Be6+ {[%emt 0:02:33]} Kh8 {[%emt 0:00:01]} 36. fxe5 {[%emt 0:00:06]} fxe5 {[%emt 0:00:17]} 37. Rd2 {[%emt 0:00:04]} Nc6 {[%emt 0:00:55]} 38. Nb6 {[%emt 0:00:21]} Nd8 {[%emt 0:01:02]} 39. Bd5 {[%emt 0:00:27]} a5 {[%emt 0:00:13]} 40. b5 {[%emt 0:01:53]} Nb7 {[%emt 0:00:51]} 41. Bxb7 {[%emt 0:30:56]} Rxb7 {[%emt 0:30:11]} 42. a4 {[%emt 0:00:11]} Kg8 {[%emt 0:00:00]} 43. Nc4 {[%emt 0:00:00]} 1-0

[Event "Netanya Open 2019"]
[Site "Netanya"]
[Date "2019.06.25"]
[Round "3.20"]
[White "Hoffmann, Yair"]
[Black "Gorodetzky, David"]
[Result "0-1"]
[ECO "D02"]
[WhiteElo "2140"]
[BlackElo "2461"]
[Annotator "ChessBase"]
[PlyCount "116"]
[EventDate "2019.06.23"]
[EventType "swiss"]
[EventCountry "ISR"]
[SourceTitle "playchess.com"]
[Source "ChessBase"]
[SourceQuality "1"]
[TimeControl "40/5400+30:1800+30"]

1. d4 {[%emt 0:00:00]} Nf6 {[%emt 0:01:40]} 2. Nf3 {[%emt 0:00:00]} d5 {[%emt 0:00:06]} 3. Bf4 {[%emt 0:00:38]} c5 {[%emt 0:00:46]} 4. e3 {[%emt 0:01:00]} Nc6 {[%emt 0:01:42]} 5. c3 {[%emt 0:00:33]} Nh5 {[%emt 0:00:07]} 6. Bg3 {[%emt 0:10:55]} Nxg3 {[%emt 0:10:49]} 7. hxg3 {[%emt 0:00:13]} Qd6 {[%emt 0:07:30]} 8. Nbd2 {[%emt 0:01:56]} cxd4 {[%emt 0:06:37]} 9. exd4 {[%emt 0:01:47]} g6 {[%emt 0:00:55]} 10. Be2 {[%emt 0:10:03]} Bg7 {[%emt 0:00:11]} 11. Nb3 {[%emt 0:02:31]} O-O {[%emt 0:04:49]} 12. Qd2 {[%emt 0:04:56]} a5 {[%emt 0:06:36]} 13. Qf4 {[%emt 0:06:48]} Qf6 {[%emt 0:11:51]} 14. Nc5 {[%emt 0:06:04]} h5 {[%emt 0:11:14]} 15. Qxf6 {[%emt 0:03:19]} Bxf6 {[%emt 0:00:22]} 16. O-O-O {[%emt 0:02:22]} Rb8 {[%emt 0:01:37]} 17. Nd3 {[%emt 0:07:09]} Bg4 {[%emt 0:05:43]} 18. a3 {[%emt 0:00:54]} Rfc8 {[%emt 0:04:46]} 19. Kb1 {[%emt 0:01:09]} Rc7 {[%emt 0:02:48]} 20. Rhe1 {[%emt 0:03:14]} Bf5 {[%emt 0:03:51]} 21. Ka2 {[%emt 0:03:15]} Bxd3 {[%emt 0:02:09]} 22. Bxd3 {[%emt 0:00:19]} b5 {[%emt 0:00:02]} 23. b4 {[%emt 0:01:16]} Na7 {[%emt 0:03:18]} 24. Kb2 {[%emt 0:00:57]} Nc8 {[%emt 0:00:18]} 25. Nd2 {[%emt 0:01:03]} a4 {[%emt 0:00:02]} 26. f4 {[%emt 0:01:06]} Nd6 {[%emt 0:01:10]} 27. Nf3 {[%emt 0:00:25]} e6 {[%emt 0:02:08]} 28. Ne5 {[%emt 0:00:50]} Bxe5 {[%emt 0:03:51]} 29. fxe5 {[%emt 0:03:14]} Nf5 {[%emt 0:00:27]} 30. Bxf5 {[%emt 0:01:00]} exf5 {[%emt 0:00:01]} 31. Rh1 {[%emt 0:01:01]} Re8 {[%emt 0:00:30]} 32. Rde1 {[%emt 0:01:45]} Rce7 {[%emt 0:00:44]} 33. Re2 {[%emt 0:00:55]} f6 {[%emt 0:00:29]} 34. Rhe1 {[%emt 0:00:06]} Kf7 {[%emt 0:01:26]} 35. Kc2 {[%emt 0:00:19]} fxe5 {[%emt 0:00:48]} 36. dxe5 {[%emt 0:02:05]} Ke6 {[%emt 0:00:01]} 37. c4 {[%emt 0:05:10]} dxc4 {[%emt 0:03:12]} 38. Rd2 {[%emt 0:00:37]} Rd7 {[%emt 0:00:15]} 39. Rxd7 {[%emt 0:00:26]} Kxd7 {[%emt 0:00:01]} 40. Rd1+ {[%emt 0:00:08]} Ke6 {[%emt 0:04:03]} 41. Rd6+ {[%emt 0:33:25]} Kxe5 {[%emt 0:30:35]} 42. Rxg6 {[%emt 0:00:10]} Re6 {[%emt 0:00:00]} 43. Rg8 {[%emt 0:00:00]} Kf6 {[%emt 0:00:00]} 44. Rf8+ {[%emt 0:00:00]} Kg6 {[%emt 0:00:00]} 45. Rg8+ {[%emt 0:00:00]} Kf7 {[%emt 0:00:00]} 46. Rg5 {[%emt 0:00:00]} Kf6 {[%emt 0:00:00]} 47. Rxh5 {[%emt 0:00:00]} Re2+ {[%emt 0:00:00]} 48. Kd1 {[%emt 0:00:00]} Rxg2 {[%emt 0:00:00]} 49. Rh6+ {[%emt 0:00:00]} Kg5 {[%emt 0:00:00]} 50. Rb6 {[%emt 0:00:00]} Rxg3 {[%emt 0:00:00]} 51. Rxb5 {[%emt 0:00:00]} Rxa3 {[%emt 0:00:00]} 52. Rc5 {[%emt 0:00:00]} Rb3 {[%emt 0:00:00]} 53. Rxc4 {[%emt 0:00:00]} a3 {[%emt 0:00:00]} 54. Rc2 {[%emt 0:00:00]} Rxb4 {[%emt 0:00:00]} 55. Rg2+ {[%emt 0:00:00]} Rg4 {[%emt 0:00:03]} 56. Ra2 {[%emt 0:00:00]} Rg1+ {[%emt 0:00:08]} 57. Kc2 {[%emt 0:00:00]} Rg2+ {[%emt 0:00:06]} 58. Kb3 {[%emt 0:00:00]} Rxa2 {[%emt 0:00:07]} 0-1

[Event "Netanya Open 2019"]
[Site "Netanya"]
[Date "2019.06.25"]
[Round "3.21"]
[White "Mindlin, Alon"]
[Black "Lahav, Michal"]
[Result "1/2-1/2"]
[ECO "D94"]
[WhiteElo "2454"]
[BlackElo "2178"]
[Annotator "ChessBase"]
[PlyCount "60"]
[EventDate "2019.06.23"]
[EventType "swiss"]
[EventCountry "ISR"]
[SourceTitle "playchess.com"]
[Source "ChessBase"]
[SourceQuality "1"]
[TimeControl "40/5400+30:1800+30"]

1. c4 {[%emt 0:00:00]} Nf6 {[%emt 0:00:00]} 2. Nc3 {[%emt 0:00:11]} c5 {[%emt 0:00:00]} 3. e3 {[%emt 0:01:02]} g6 {[%emt 0:00:20]} 4. d4 {[%emt 0:00:07]} Bg7 {[%emt 0:00:26]} 5. Nf3 {[%emt 0:00:09]} cxd4 {[%emt 0:00:11]} 6. exd4 {[%emt 0:00:05]} O-O {[%emt 0:00:16]} 7. Be2 {[%emt 0:01:18]} d5 {[%emt 0:00:11]} 8. h3 {[%emt 0:00:49]} Nc6 {[%emt 0:00:15]} 9. O-O {[%emt 0:00:07]} dxc4 {[%emt 0:00:12]} 10. Bxc4 {[%emt 0:00:05]} b6 {[%emt 0:00:14]} 11. Re1 {[%emt 0:06:19]} Bb7 {[%emt 0:02:41]} 12. Be3 {[%emt 0:06:36]} Rc8 {[%emt 0:00:48]} 13. Bf1 {[%emt 0:18:50]} e6 {[%emt 0:00:28]} 14. Rc1 {[%emt 0:03:41]} Qd6 {[%emt 0:08:21]} 15. Bg5 {[%emt 0:10:48]} Ne7 {[%emt 0:04:25]} 16. Ne5 {[%emt 0:07:00]} Ned5 {[%emt 0:10:59]} 17. Nb5 {[%emt 0:05:39]} Qb8 {[%emt 0:00:40]} 18. Qe2 {[%emt 0:06:50]} a6 {[%emt 0:19:42]} 19. Rxc8 {[%emt 0:07:42]} Bxc8 {[%emt 0:00:06]} 20. Nc3 {[%emt 0:00:40]} Qd6 {[%emt 0:02:36]} 21. Nc4 {[%emt 0:04:38]} Qb8 {[%emt 0:04:56]} 22. Qe5 {[%emt 0:01:00]} Qa7 {[%emt 0:06:34]} 23. Qd6 {[%emt 0:02:49]} b5 {[%emt 0:01:50]} 24. Na5 {[%emt 0:01:48]} Qb6 {[%emt 0:09:32]} 25. Nc6 {[%emt 0:04:35]} Bb7 {[%emt 0:00:01]} 26. Bxf6 {[%emt 0:00:30]} Qxc6 {[%emt 0:00:03]} 27. Qxc6 {[%emt 0:00:23]} Bxc6 {[%emt 0:00:02]} 28. Bxg7 {[%emt 0:00:05]} Kxg7 {[%emt 0:00:05]} 29. Rc1 {[%emt 0:02:54]} Ne7 {[%emt 0:01:02]} 30. Rd1 {[%emt 0:04:48]} Rd8 {[%emt 0:00:17]} 1/2-1/2

[Event "Netanya Open 2019"]
[Site "Netanya"]
[Date "2019.06.25"]
[Round "3.22"]
[White "Erenberg, Ariel"]
[Black "Gleizer, Mark"]
[Result "1-0"]
[ECO "D94"]
[WhiteElo "2434"]
[BlackElo "2173"]
[Annotator "NA"]
[PlyCount "69"]
[EventDate "2019.06.23"]
[EventType "swiss"]
[EventCountry "ISR"]
[SourceTitle "playchess.com"]
[Source "ChessBase"]
[SourceQuality "1"]
[TimeControl "40/5400+30:1800+30"]

1. d4 {[%emt 0:00:00]} Nf6 {[%emt 0:03:06]} 2. c4 {[%emt 0:00:05]} c6 {[%emt 0:02:42]} 3. Nf3 {[%emt 0:02:30]} d5 {[%emt 0:00:15]} 4. e3 {[%emt 0:00:30]} g6 {[%emt 0:07:18]} 5. Nc3 {[%emt 0:00:45]} Bg7 {[%emt 0:00:13]} 6. Be2 {[%emt 0:02:03]} O-O {[%emt 0:02:11]} 7. O-O {[%emt 0:00:06]} a6 {[%emt 0:04:24]} 8. b3 {[%emt 0:06:11]} b5 {[%emt 0:08:38]} 9. Bb2 {[%emt 0:03:29]} Re8 {[%emt 0:03:55]} 10. Re1 {[%emt 0:04:22]} Ra7 {[%emt 0:02:13]} 11. Ne5 {[%emt 0:11:50]} Nfd7 {[%emt 0:03:14]} 12. f4 {[%emt 0:04:50]} Nxe5 {[%emt 0:03:49]} 13. fxe5 {[%emt 0:03:08]} f6 {[%emt 0:02:29]} 14. exf6 {[%emt 0:10:58]} exf6 {[%emt 0:00:57]} 15. Bf3 {[%emt 0:02:21]} b4 {[%emt 0:08:18]} 16. Na4 {[%emt 0:00:30]} f5 {[%emt 0:00:14]} 17. cxd5 {[%emt 0:07:46]} cxd5 {[%emt 0:00:04]} 18. a3 {[%emt 0:04:23]} a5 {[%emt 0:02:18]} 19. axb4 {[%emt 0:02:08]} axb4 {[%emt 0:00:02]} 20. Nc5 {[%emt 0:01:48]} Ree7 {[%emt 0:02:29]} 21. Qd3 {[%emt 0:02:28]} Qd6 {[%emt 0:04:00]} 22. Rxa7 {[%emt 0:10:04]} Rxa7 {[%emt 0:00:06]} 23. Qb5 {[%emt 0:00:05]} Nc6 {[%emt 0:01:47]} 24. Nd3 {[%emt 0:00:33]} Be6 {[%emt 0:11:57]} 25. Rc1 {[%emt 0:02:06]} Ne7 {[%emt 0:03:18]} 26. Nxb4 {[%emt 0:03:20]} Bh6 {[%emt 0:01:43]} 27. Kf2 {[%emt 0:00:41]} f4 {[%emt 0:03:18]} 28. exf4 {[%emt 0:06:08]} Qxf4 {[%emt 0:01:40]} 29. Rc2 {[%emt 0:04:48]} Rd7 {[%emt 0:03:10]} 30. Re2 {[%emt 0:00:54]} Bg4 {[%emt 0:03:44]} 31. Nd3 {[%emt 0:00:48]} Qf6 {[%emt 0:02:09]} 32. Ne5 {[%emt 0:01:38]} Bxf3 {[%emt 0:00:34]} 33. Nxf3 {[%emt 0:00:05]} Qd6 {[%emt 0:02:26]} 34. Ba3 {[%emt 0:00:25]} Qc6 {[%emt 0:01:22]} 35. Qb8+ {[%emt 0:03:44] Qf6 Qb5} 1-0

[Event "Netanya Open 2019"]
[Site "Netanya"]
[Date "2019.06.25"]
[Round "3.23"]
[White "Shubin, Kirill"]
[Black "Hasidovsky, Michael"]
[Result "1-0"]
[ECO "C13"]
[WhiteElo "2426"]
[BlackElo "2135"]
[Annotator "NA"]
[PlyCount "95"]
[EventDate "2019.06.23"]
[EventType "swiss"]
[EventCountry "ISR"]
[SourceTitle "playchess.com"]
[Source "ChessBase"]
[SourceQuality "1"]
[TimeControl "40/5400+30:1800+30"]

1. e4 {[%emt 0:00:00]} e6 {[%emt 0:00:00]} 2. d4 {[%emt 0:00:00]} d5 {[%emt 0:00:00]} 3. Nc3 {[%emt 0:00:00]} dxe4 {[%emt 0:00:00]} 4. Nxe4 {[%emt 0:00:00]} Nd7 {[%emt 0:00:03]} 5. Nf3 {[%emt 0:00:03]} Ngf6 {[%emt 0:00:05]} 6. Bg5 {[%emt 0:00:05]} Be7 {[%emt 0:00:05]} 7. Nxf6+ {[%emt 0:00:12]} Bxf6 {[%emt 0:00:07]} 8. h4 {[%emt 0:00:30]} c5 {[%emt 0:01:59]} 9. Bxf6 {[%emt 0:05:46]} Qxf6 {[%emt 0:00:05]} 10. Qd2 {[%emt 0:00:49]} a6 {[%emt 0:06:30]} 11. O-O-O {[%emt 0:01:34]} cxd4 {[%emt 0:02:50]} 12. Bd3 {[%emt 0:03:54]} Nc5 {[%emt 0:09:11]} 13. Qb4 {[%emt 0:06:06]} Qe7 {[%emt 0:04:08]} 14. Qxd4 {[%emt 0:00:09]} Nxd3+ {[%emt 0:00:15]} 15. Rxd3 {[%emt 0:00:45]} O-O {[%emt 0:00:40]} 16. Rhd1 {[%emt 0:08:53]} f6 {[%emt 0:02:04]} 17. Qc4 {[%emt 0:14:13]} Kh8 {[%emt 0:01:53]} 18. Qe4 {[%emt 0:08:32]} e5 {[%emt 0:06:54]} 19. Rd6 {[%emt 0:00:26]} Rb8 {[%emt 0:10:24]} 20. h5 {[%emt 0:02:01]} b6 {[%emt 0:09:57]} 21. Qe3 {[%emt 0:09:43]} Qf7 {[%emt 0:10:21]} 22. h6 {[%emt 0:06:49]} gxh6 {[%emt 0:05:33]} 23. Qxh6 {[%emt 0:02:25]} Qg7 {[%emt 0:01:29]} 24. Qe3 {[%emt 0:01:46]} b5 {[%emt 0:06:50]} 25. g3 {[%emt 0:01:11]} Bg4 {[%emt 0:03:36]} 26. R1d2 {[%emt 0:04:31]} a5 {[%emt 0:02:02]} 27. Nh4 {[%emt 0:01:40]} b4 {[%emt 0:03:00]} 28. f3 {[%emt 0:01:02]} Bh5 {[%emt 0:02:35]} 29. g4 {[%emt 0:01:17]} Qg5 {[%emt 0:01:34]} 30. Qxg5 {[%emt 0:02:03]} fxg5 {[%emt 0:00:02]} 31. Nf5 {[%emt 0:00:10]} Bg6 {[%emt 0:00:14]} 32. Ne7 {[%emt 0:00:15]} Bf7 {[%emt 0:04:17]} 33. Nc6 {[%emt 0:02:06]} Rb5 {[%emt 0:00:21]} 34. Rf6 {[%emt 0:00:45]} Kg7 {[%emt 0:00:48]} 35. Rf5 {[%emt 0:00:23]} Be8 {[%emt 0:03:45]} 36. Rxg5+ {[%emt 0:02:55]} Kh6 {[%emt 0:00:01]} 37. Rxe5 {[%emt 0:00:12]} Bxc6 {[%emt 0:00:22]} 38. Rd6+ {[%emt 0:00:46]} Kg7 {[%emt 0:00:07]} 39. Re7+ {[%emt 0:00:04]} Kg8 {[%emt 0:00:17]} 40. Rxc6 {[%emt 0:00:05]} Rxf3 {[%emt 0:02:36]} 41. Rc8+ {[%emt 0:30:04]} Rf8 {[%emt 0:30:10]} 42. Rxf8+ {[%emt 0:00:05]} Kxf8 {[%emt 0:00:03]} 43. Rxh7 {[%emt 0:00:05]} Rg5 {[%emt 0:00:31]} 44. Rh5 {[%emt 0:00:05]} Rxg4 {[%emt 0:00:08]} 45. Rxa5 {[%emt 0:00:03]} Ke7 {[%emt 0:00:13]} 46. b3 {[%emt 0:00:43]} Kd6 {[%emt 0:02:43]} 47. Kb2 {[%emt 0:00:14]} Rg2 {[%emt 0:00:45]} 48. a3 {[%emt 0:00:07]} 1-0

[Event "Netanya Open 2019"]
[Site "Netanya"]
[Date "2019.06.25"]
[Round "3.24"]
[White "Sheinkman, Lidan"]
[Black "Kantsler, Boris"]
[Result "0-1"]
[ECO "A49"]
[WhiteElo "1874"]
[BlackElo "2420"]
[Annotator "NA"]
[PlyCount "46"]
[EventDate "2019.06.23"]
[EventType "swiss"]
[EventCountry "ISR"]
[SourceTitle "playchess.com"]
[Source "ChessBase"]
[SourceQuality "1"]
[TimeControl "40/5400+30:1800+30"]

1. d4 {[%emt 0:00:00]} g6 {[%emt 0:00:00]} 2. Nf3 {[%emt 0:00:00]} Bg7 {[%emt 0:00:00]} 3. g3 {[%emt 0:00:25]} Nf6 {[%emt 0:00:03]} 4. Bg2 {[%emt 0:01:11]} O-O {[%emt 0:00:04]} 5. O-O {[%emt 0:00:10]} d6 {[%emt 0:00:19]} 6. b3 {[%emt 0:00:21]} e5 {[%emt 0:02:06]} 7. dxe5 {[%emt 0:00:53]} dxe5 {[%emt 0:00:03]} 8. Ba3 {[%emt 0:00:11]} Re8 {[%emt 0:00:05]} 9. Nc3 {[%emt 0:08:13]} Bd7 {[%emt 0:08:50]} 10. e4 {[%emt 0:07:28]} Nc6 {[%emt 0:00:58]} 11. Re1 {[%emt 0:12:21]} Bg4 {[%emt 0:07:08]} 12. Bb2 {[%emt 0:20:36]} Nd4 {[%emt 0:06:59]} 13. h3 {[%emt 0:03:52]} Nxf3+ {[%emt 0:02:37]} 14. Bxf3 {[%emt 0:02:17]} Bxh3 {[%emt 0:01:01]} 15. Qxd8 {[%emt 0:01:08]} Raxd8 {[%emt 0:00:46]} 16. Rad1 {[%emt 0:00:10]} c6 {[%emt 0:11:51]} 17. Na4 {[%emt 0:06:32]} Rxd1 {[%emt 0:00:20]} 18. Rxd1 {[%emt 0:00:09]} Bf8 {[%emt 0:00:01]} 19. Bc3 {[%emt 0:05:59]} Be6 {[%emt 0:09:45]} 20. Bxe5 {[%emt 0:05:44]} Bg4 {[%emt 0:03:38]} 21. Bxg4 {[%emt 0:04:56]} Rxe5 {[%emt 0:02:37]} 22. Bf3 {[%emt 0:00:29]} Nxe4 {[%emt 0:00:27]} 23. Re1 {[%emt 0:00:12]} Nd2 {[%emt 0:00:26]} 0-1

[Event "Netanya Open 2019"]
[Site "Netanya"]
[Date "2019.06.25"]
[Round "3.25"]
[White "Bronstein, Or"]
[Black "Levi, Netanel"]
[Result "1-0"]
[ECO "E94"]
[WhiteElo "2378"]
[BlackElo "2143"]
[Annotator "NA"]
[PlyCount "51"]
[EventDate "2019.06.23"]
[EventType "swiss"]
[EventCountry "ISR"]
[SourceTitle "playchess.com"]
[Source "ChessBase"]
[SourceQuality "1"]
[TimeControl "40/5400+30:1800+30"]

1. d4 {[%emt 0:00:00]} Nf6 {[%emt 0:00:00]} 2. c4 {[%emt 0:00:00]} d6 {[%emt 0:00:00]} 3. Nc3 {[%emt 0:00:08]} e5 {[%emt 0:00:00]} 4. Nf3 {[%emt 0:00:52]} Nbd7 {[%emt 0:00:06]} 5. e4 {[%emt 0:00:10]} g6 {[%emt 0:00:08]} 6. Be2 {[%emt 0:03:11]} Bg7 {[%emt 0:00:13]} 7. O-O {[%emt 1:29:09]} O-O {[%emt 0:00:03]} 8. Qc2 {[%emt 0:00:00]} Qe7 {[%emt 0:05:36]} 9. Rd1 {[%emt 0:00:00]} Re8 {[%emt 0:05:01]} 10. dxe5 {[%emt 0:00:00]} dxe5 {[%emt 0:03:36]} 11. Nd5 {[%emt 0:00:00]} Qd8 {[%emt 0:00:46]} 12. Bg5 {[%emt 0:00:00]} c6 {[%emt 0:02:04]} 13. Nxf6+ {[%emt 0:00:00]} Bxf6 {[%emt 0:00:10]} 14. Bxf6 {[%emt 0:00:00]} Qxf6 {[%emt 0:00:05]} 15. c5 {[%emt 0:00:00]} Qe7 {[%emt 0:11:44]} 16. Rd6 {[%emt 0:00:00]} Nf8 {[%emt 0:11:44]} 17. Bc4 {[%emt 0:00:00]} Bg4 {[%emt 0:05:35]} 18. Qc3 {[%emt 0:00:00]} Rad8 {[%emt 0:11:00]} 19. Nxe5 {[%emt 0:00:00]} Be6 {[%emt 0:08:46]} 20. Bxe6 {[%emt 0:00:00]} Nxe6 {[%emt 0:00:23]} 21. Ng4 {[%emt 0:00:00]} Qh4 {[%emt 0:09:09]} 22. Nf6+ {[%emt 0:00:00]} Kf8 {[%emt 0:00:07]} 23. Nxe8 {[%emt 0:00:00]} Rxe8 {[%emt 0:00:11]} 24. Qh8+ {[%emt 0:00:00]} Ke7 {[%emt 0:00:02]} 25. Rxe6+ {[%emt 0:00:00]} fxe6 {[%emt 0:01:16]} 26. Qg7+ {[%emt 0:00:00]} 1-0

[Event "Netanya Open 2019"]
[Site "Netanya"]
[Date "2019.06.25"]
[Round "3.26"]
[White "Yaniv, Yuval"]
[Black "Rechlis, Gad"]
[Result "0-1"]
[ECO "B67"]
[WhiteElo "2120"]
[BlackElo "2506"]
[Annotator "ChessBase"]
[PlyCount "72"]
[EventDate "2019.06.23"]
[EventType "swiss"]
[EventCountry "ISR"]
[SourceTitle "playchess.com"]
[Source "ChessBase"]
[SourceQuality "1"]
[TimeControl "40/5400+30:1800+30"]

1. e4 {[%emt 0:00:00]} c5 {[%emt 0:15:09]} 2. Nf3 {[%emt 0:00:00]} d6 {[%emt 0:00:30]} 3. d4 {[%emt 0:00:01]} cxd4 {[%emt 0:00:06]} 4. Nxd4 {[%emt 0:00:07]} Nf6 {[%emt 0:00:03]} 5. Nc3 {[%emt 0:00:09]} Nc6 {[%emt 0:00:28]} 6. Bg5 {[%emt 0:00:33]} e6 {[%emt 0:00:26]} 7. Qd2 {[%emt 0:00:09]} a6 {[%emt 0:00:33]} 8. O-O-O {[%emt 0:00:09]} Bd7 {[%emt 0:00:45]} 9. f3 {[%emt 0:00:28]} Be7 {[%emt 0:03:36]} 10. Kb1 {[%emt 0:00:14]} Qa5 {[%emt 0:09:53]} 11. Nb3 {[%emt 0:02:30]} Qc7 {[%emt 0:00:08]} 12. Bxf6 {[%emt 0:01:30]} gxf6 {[%emt 0:01:58]} 13. f4 {[%emt 0:00:12]} O-O-O {[%emt 0:09:06]} 14. Be2 {[%emt 0:00:16]} h5 {[%emt 0:00:13]} 15. Rhf1 {[%emt 0:00:11]} Kb8 {[%emt 0:00:46]} 16. Rf3 {[%emt 0:00:16]} Bc8 {[%emt 0:10:37]} 17. Rh3 {[%emt 0:06:02]} h4 {[%emt 0:05:15]} 18. Qe1 {[%emt 0:00:34]} f5 {[%emt 0:01:04]} 19. exf5 {[%emt 0:10:22]} d5 {[%emt 0:00:35]} 20. Qf2 {[%emt 0:04:07]} d4 {[%emt 0:10:25]} 21. Ne4 {[%emt 0:08:04]} exf5 {[%emt 0:01:48]} 22. Ng5 {[%emt 0:01:34]} Nb4 {[%emt 0:10:01]} 23. Bd3 {[%emt 0:05:51]} Bf6 {[%emt 0:06:53]} 24. Rxh4 {[%emt 0:11:11]} Rxh4 {[%emt 0:01:04]} 25. Qxh4 {[%emt 0:00:03]} a5 {[%emt 0:02:36]} 26. Nc1 {[%emt 0:04:48]} a4 {[%emt 0:01:27]} 27. a3 {[%emt 0:02:33]} Nd5 {[%emt 0:00:14]} 28. Rf1 {[%emt 0:04:12]} Rd6 {[%emt 0:02:45]} 29. Qh5 {[%emt 0:04:41]} Rb6 {[%emt 0:00:37]} 30. Qxf7 {[%emt 0:00:46]} Qc3 {[%emt 0:00:18]} 31. b3 {[%emt 0:01:31]} axb3 {[%emt 0:00:14]} 32. Nxb3 {[%emt 0:00:36]} Rxb3+ {[%emt 0:00:14]} 33. Kc1 {[%emt 0:00:43]} Qa1+ {[%emt 0:03:02]} 34. Kd2 {[%emt 0:00:03]} Rxd3+ {[%emt 0:00:05]} 35. cxd3 {[%emt 0:00:12]} Qb2+ {[%emt 0:00:04]} 36. Ke1 {[%emt 0:00:15]} Qc1+ {[%emt 0:00:05]} 0-1

[Event "Netanya Open 2019"]
[Site "Netanya"]
[Date "2019.06.25"]
[Round "3.27"]
[White "Veinberg, Nimrod"]
[Black "Zhimalov, Adam"]
[Result "1-0"]
[ECO "A47"]
[WhiteElo "2401"]
[BlackElo "2044"]
[Annotator "NA"]
[PlyCount "97"]
[EventDate "2019.06.23"]
[EventType "swiss"]
[EventCountry "ISR"]
[SourceTitle "playchess.com"]
[Source "ChessBase"]
[SourceQuality "1"]
[TimeControl "40/5400+30:1800+30"]

1. d4 {[%emt 0:00:00]} Nf6 {[%emt 0:02:21]} 2. Nf3 {[%emt 0:00:41]} e6 {[%emt 0:00:30]} 3. Bf4 {[%emt 0:00:33]} c5 {[%emt 0:04:36]} 4. e3 {[%emt 0:00:20]} b6 {[%emt 0:02:14]} 5. Bd3 {[%emt 0:01:01]} Bb7 {[%emt 0:01:28]} 6. Nbd2 {[%emt 0:00:28]} Be7 {[%emt 0:05:29]} 7. h3 {[%emt 0:02:09]} d6 {[%emt 0:03:38]} 8. dxc5 {[%emt 0:08:03]} bxc5 {[%emt 0:04:07]} 9. e4 {[%emt 0:04:33]} e5 {[%emt 0:06:45]} 10. Bh2 {[%emt 0:01:08]} O-O {[%emt 0:03:56]} 11. O-O {[%emt 0:02:41]} Qc7 {[%emt 0:04:27]} 12. Qe2 {[%emt 0:05:00]} Re8 {[%emt 0:04:52]} 13. Rfe1 {[%emt 0:05:04]} Nbd7 {[%emt 0:07:40]} 14. Rad1 {[%emt 0:06:14]} Nb6 {[%emt 0:06:27]} 15. Bb5 {[%emt 0:08:51]} Rec8 {[%emt 0:04:52]} 16. Nc4 {[%emt 0:10:56]} Nxc4 {[%emt 0:06:32]} 17. Qxc4 {[%emt 0:01:54]} Bf8 {[%emt 0:06:01]} 18. Nd2 {[%emt 0:06:42]} Bc6 {[%emt 0:05:35]} 19. Bxc6 {[%emt 0:02:01]} Qxc6 {[%emt 0:00:07]} 20. b3 {[%emt 0:00:12]} a5 {[%emt 0:02:12]} 21. a4 {[%emt 0:00:20]} Nd7 {[%emt 0:00:07]} 22. Qd3 {[%emt 0:06:49]} Nb6 {[%emt 0:00:58]} 23. c4 {[%emt 0:00:17]} Nd7 {[%emt 0:00:43]} 24. Nb1 {[%emt 0:01:33]} Rab8 {[%emt 0:01:38]} 25. Na3 {[%emt 0:00:11]} Re8 {[%emt 0:01:07]} 26. Nb5 {[%emt 0:00:52]} Re6 {[%emt 0:00:50]} 27. Re3 {[%emt 0:01:11]} Rg6 {[%emt 0:05:54]} 28. g4 {[%emt 0:03:20]} h5 {[%emt 0:01:27]} 29. f3 {[%emt 0:00:15]} hxg4 {[%emt 0:01:11]} 30. hxg4 {[%emt 0:00:31]} Be7 {[%emt 0:01:04]} 31. Qe2 {[%emt 0:01:32]} Nf8 {[%emt 0:01:18]} 32. Qe1 {[%emt 0:02:48]} Qb6 {[%emt 0:00:25]} 33. Red3 {[%emt 0:00:06]} Rd8 {[%emt 0:00:54]} 34. Qd2 {[%emt 0:05:52]} Bg5 {[%emt 0:02:23]} 35. Qc3 {[%emt 0:01:24]} Be7 {[%emt 0:00:37]} 36. Qd2 {[%emt 0:05:29]} Bg5 {[%emt 0:00:18]} 37. Qe1 {[%emt 0:00:39]} Be7 {[%emt 0:00:19]} 38. Nc3 {[%emt 0:00:02]} Qa7 {[%emt 0:00:53]} 39. Bxe5 {[%emt 0:00:25]} dxe5 {[%emt 0:01:51]} 40. Rxd8 {[%emt 0:00:15]} Bxd8 {[%emt 0:00:36]} 41. Rxd8 {[%emt 0:30:12]} Qe7 {[%emt 0:30:41]} 42. Qd2 {[%emt 0:00:39]} Kh7 {[%emt 0:00:00]} 43. Rb8 {[%emt 0:00:00]} Ne6 {[%emt 0:00:00]} 44. Nd5 {[%emt 0:00:00]} Qa7 {[%emt 0:00:00]} 45. Qh2+ {[%emt 0:00:00]} Rh6 {[%emt 0:00:00]} 46. Qxe5 {[%emt 0:00:00]} Nd4 {[%emt 0:00:00]} 47. Kg2 {[%emt 0:00:00]} Qd7 {[%emt 0:00:00]} 48. Qe7 {[%emt 0:00:00]} Qc6 {[%emt 0:00:00]} 49. Rb6 {[%emt 0:00:00]} 1-0